[Event "84th ESP-ch 2019"]
[Site "Marbella"]
[Date "2019.11.24"]
[Round "9.36"]
[White "Jaime Montalvan, Luis Felipe"]
[Black "Antonano Fedz-Quincoces, Avelino"]
[Result "1-0"]
[ECO "A62"]
[WhiteElo "2167"]
[BlackElo "2021"]
[Annotator "NA"]
[PlyCount "117"]
[EventDate "2019.11.16"]
[EventType "swiss"]
[EventCountry "ESP"]
[SourceTitle "playchess.com"]
[Source "ChessBase"]
[SourceQuality "1"]
[TimeControl "5400+30"]

1. d4 {[%emt 0:00:00]} Nf6 {[%emt 0:00:00]} 2. c4 {[%emt 0:00:00]} e6 {[%emt 0:00:00]} 3. g3 {[%emt 0:01:45]} c5 {[%emt 0:00:48]} 4. d5 {[%emt 0:01:39]} exd5 {[%emt 0:00:22]} 5. cxd5 {[%emt 0:00:04]} d6 {[%emt 0:00:26]} 6. Bg2 {[%emt 0:00:05]} g6 {[%emt 0:00:30]} 7. Nc3 {[%emt 0:00:10]} Bg7 {[%emt 0:00:21]} 8. Nf3 {[%emt 0:00:07]} O-O {[%emt 0:00:35]} 9. O-O {[%emt 0:00:05]} Re8 {[%emt 0:01:34]} 10. Nd2 {[%emt 0:01:48]} Na6 {[%emt 0:02:43]} 11. Nc4 {[%emt 0:02:45]} Nc7 {[%emt 0:01:37]} 12. Bf4 {[%emt 0:01:05]} Bf8 {[%emt 0:00:15]} 13. a4 {[%emt 0:00:22]} Nh5 {[%emt 0:01:20]} 14. Bd2 {[%emt 0:00:17]} b6 15. e4 {[%emt 0:00:59]} Ba6 {[%emt 0:01:38]} 16. Qb3 {[%emt 0:06:04]} Rb8 {[%emt 0:01:57]} 17. Rfe1 {[%emt 0:00:05]} Bxc4 {[%emt 0:03:58]} 18. Qxc4 {[%emt 0:00:04]} a6 {[%emt 0:00:11]} 19. Qb3 {[%emt 0:13:40]} Nf6 {[%emt 0:01:32]} 20. Qc2 {[%emt 0:04:25]} Bg7 {[%emt 0:01:34]} 21. h3 {[%emt 0:02:41]} Nd7 {[%emt 0:06:11]} 22. Nd1 {[%emt 0:09:10]} b5 {[%emt 0:09:53]} 23. Bc3 {[%emt 0:01:30]} Ne5 24. f4 {[%emt 0:01:18]} b4 {[%emt 0:05:02]} 25. Bxe5 {[%emt 0:13:42]} dxe5 {[%emt 0:00:28]} 26. f5 {[%emt 0:04:15]} gxf5 {[%emt 0:04:06]} 27. Ne3 {[%emt 0:01:13]} f4 {[%emt 0:00:48]} 28. Nf5 {[%emt 0:00:09]} Qg5 {[%emt 0:14:30]} 29. Qxc5 {[%emt 0:14:29]} Rbc8 {[%emt 0:01:07]} 30. h4 {[%emt 0:00:30]} Qf6 {[%emt 0:01:36]} 31. Rac1 {[%emt 0:02:01]} Bf8 {[%emt 0:01:15]} 32. Qa5 {[%emt 0:00:28]} Na8 {[%emt 0:03:31]} 33. Bf1 {[%emt 0:01:30]} Qb6+ {[%emt 0:02:51]} 34. Qxb6 {[%emt 0:00:04]} Nxb6 {[%emt 0:01:04]} 35. Bxa6 {[%emt 0:00:03]} Rxc1 {[%emt 0:01:44]} 36. Rxc1 {[%emt 0:00:12]} Nxa4 {[%emt 0:00:20]} 37. Bb5 {[%emt 0:00:51]} Ra8 {[%emt 0:00:04]} 38. Ra1 {[%emt 0:01:47]} Bc5+ {[%emt 0:01:20]} 39. Kg2 {[%emt 0:00:18]} Nb6 {[%emt 0:00:41]} 40. Rxa8+ {[%emt 0:01:16]} Nxa8 {[%emt 0:00:02]} 41. d6 {[%emt 0:00:55]} Kf8 {[%emt 0:01:18]} 42. gxf4 {[%emt 0:03:27]} f6 {[%emt 0:00:17]} 43. fxe5 {[%emt 0:03:35]} fxe5 {[%emt 0:00:21]} 44. b3 {[%emt 0:04:51]} Kf7 {[%emt 0:02:27]} 45. Kg3 {[%emt 0:04:25]} Nb6 {[%emt 0:00:22]} 46. Kg4 {[%emt 0:00:25]} Ke6 {[%emt 0:00:29]} 47. Kg5 {[%emt 0:00:49]} Bxd6 {[%emt 0:01:11]} 48. Nxd6 {[%emt 0:00:13]} Kxd6 {[%emt 0:00:15]} 49. Kh6 {[%emt 0:00:16]} Kc5 {[%emt 0:00:32]} 50. Be8 {[%emt 0:00:32]} Kd4 {[%emt 0:01:14]} 51. Kxh7 {[%emt 0:00:50]} Kxe4 {[%emt 0:01:33]} 52. Kg7 {[%emt 0:00:08]} Nc4 {[%emt 0:06:47]} 53. h5 {[%emt 0:01:43]} Nd6 {[%emt 0:07:26]} 54. Bg6+ {[%emt 0:00:04]} Kd4 {[%emt 0:00:19]} 55. h6 {[%emt 0:00:03]} Kc3 {[%emt 0:05:22]} 56. h7 {[%emt 0:00:05]} Kxb3 {[%emt 0:00:31]} 57. h8=Q {[%emt 0:00:03]} Nb5 {[%emt 0:00:34]} 58. Kf6 {[%emt 0:01:02]} Ka3 {[%emt 0:03:41]} 59. Qa8+ {[%emt 0:00:38]} 1-0

[Event "84th ESP-ch 2019"]
[Site "Marbella"]
[Date "2019.11.24"]
[Round "9.37"]
[White "Hernando Rodrigo, Inmaculada"]
[Black "Vega Gutierrez, Belinda"]
[Result "0-1"]
[ECO "C22"]
[WhiteElo "1863"]
[BlackElo "2161"]
[Annotator "NA"]
[PlyCount "120"]
[EventDate "2019.11.16"]
[EventType "swiss"]
[EventCountry "ESP"]
[SourceTitle "playchess.com"]
[Source "ChessBase"]
[SourceQuality "1"]
[TimeControl "5400+30"]

1. e4 {[%emt 0:01:18]} e5 {[%emt 0:00:00]} 2. d4 {[%emt 0:00:06]} exd4 {[%emt 0:00:06]} 3. Qxd4 {[%emt 0:00:06]} Nc6 {[%emt 0:00:12]} 4. Qe3 {[%emt 0:00:08]} Nf6 {[%emt 0:00:12]} 5. Nc3 {[%emt 0:00:19]} Bb4 {[%emt 0:00:39]} 6. Bd2 {[%emt 0:00:14]} O-O {[%emt 0:00:39]} 7. O-O-O {[%emt 0:00:45]} Re8 {[%emt 0:00:24]} 8. Bc4 {[%emt 0:01:39]} d6 {[%emt 0:04:30]} 9. f3 {[%emt 0:01:54]} Ne5 {[%emt 0:06:40]} 10. Bb3 {[%emt 0:07:40]} Be6 {[%emt 0:02:39]} 11. Bxe6 {[%emt 0:11:23]} Rxe6 {[%emt 0:00:05]} 12. Qf2 {[%emt 0:04:52]} a5 {[%emt 0:07:08]} 13. Nge2 {[%emt 0:03:43]} Bc5 {[%emt 0:11:43]} 14. Nd4 {[%emt 0:05:24]} Re8 {[%emt 0:01:53]} 15. Bg5 {[%emt 0:14:15]} h6 {[%emt 0:00:57]} 16. Bxf6 {[%emt 0:05:52]} Qxf6 {[%emt 0:00:04]} 17. Nd5 {[%emt 0:00:41]} Qd8 {[%emt 0:00:11]} 18. Qg3 {[%emt 0:01:36]} c6 {[%emt 0:16:30]} 19. Nf5 {[%emt 0:00:59]} g6 {[%emt 0:02:11]} 20. Nxh6+ {[%emt 0:10:55]} Kh7 {[%emt 0:00:15]} 21. Nxf7 {[%emt 0:07:32]} Nxf7 {[%emt 0:01:02]} 22. Nf4 {[%emt 0:02:19]} Qg5 {[%emt 0:03:32]} 23. Qxg5 {[%emt 0:01:24]} Nxg5 {[%emt 0:00:03]} 24. Nd3 {[%emt 0:00:12]} Be3+ {[%emt 0:02:45]} 25. Kb1 {[%emt 0:00:02]} Re7 {[%emt 0:00:14]} 26. h4 {[%emt 0:01:04]} Nf7 {[%emt 0:01:09]} 27. h5 {[%emt 0:00:38]} g5 {[%emt 0:00:48]} 28. Rde1 {[%emt 0:02:21]} Bb6 {[%emt 0:04:40]} 29. Nc1 {[%emt 0:03:02]} Rae8 {[%emt 0:00:31]} 30. Ne2 {[%emt 0:00:24]} d5 {[%emt 0:01:51]} 31. Ng3 {[%emt 0:00:54]} Bf2 {[%emt 0:01:14]} 32. Nf5 {[%emt 0:00:07]} Bxe1 {[%emt 0:00:22]} 33. Nxe7 {[%emt 0:00:06]} Rxe7 {[%emt 0:05:12]} 34. Rxe1 {[%emt 0:00:07]} dxe4 {[%emt 0:00:08]} 35. fxe4 {[%emt 0:01:46]} Kh6 {[%emt 0:01:40]} 36. Kc1 {[%emt 0:01:28]} Kxh5 {[%emt 0:02:31]} 37. Kd2 {[%emt 0:00:19]} Kg4 {[%emt 0:01:04]} 38. Kd3 {[%emt 0:00:39]} Kg3 {[%emt 0:00:47]} 39. Re2 {[%emt 0:00:22]} Ne5+ {[%emt 0:03:29]} 40. Kd4 {[%emt 0:00:27]} b6 {[%emt 0:05:09]} 41. a3 {[%emt 0:04:06]} Ng4 {[%emt 0:03:29]} 42. e5 {[%emt 0:00:47]} Re6 {[%emt 0:01:37]} 43. b4 {[%emt 0:00:18]} axb4 {[%emt 0:00:14]} 44. axb4 {[%emt 0:00:02]} b5 {[%emt 0:02:15]} 45. Re4 {[%emt 0:01:54]} Nf2 {[%emt 0:00:40]} 46. Re2 {[%emt 0:01:28]} Kxg2 {[%emt 0:00:17]} 47. c4 {[%emt 0:00:09]} bxc4 {[%emt 0:00:35]} 48. Kxc4 {[%emt 0:00:06]} Kf3 {[%emt 0:01:43]} 49. Re1 {[%emt 0:00:43]} g4 {[%emt 0:01:07]} 50. b5 {[%emt 0:00:10]} cxb5+ {[%emt 0:00:09]} 51. Kd5 {[%emt 0:00:04]} Re8 {[%emt 0:00:21]} 52. e6 {[%emt 0:00:55]} g3 {[%emt 0:02:18]} 53. Kd6 {[%emt 0:00:30]} Ne4+ {[%emt 0:00:34]} 54. Kd7 {[%emt 0:02:42]} Nf6+ {[%emt 0:00:04]} 55. Kd6 {[%emt 0:00:08]} g2 {[%emt 0:00:18]} 56. Rb1 {[%emt 0:00:04]} Rg8 {[%emt 0:03:04]} 57. Rxb5 {[%emt 0:00:12]} Ne8+ {[%emt 0:00:37]} 58. Kd7 {[%emt 0:00:32]} g1=Q {[%emt 0:00:11]} 59. Rf5+ {[%emt 0:00:48]} Ke4 {[%emt 0:00:18]} 60. Rf7 {[%emt 0:00:13]} Qb6 {[%emt 0:00:54]} 0-1

[Event "84th ESP-ch 2019"]
[Site "Marbella"]
[Date "2019.11.24"]
[Round "9.38"]
[White "Collado Barbas, Laura"]
[Black "Diaz Mino, Daniel"]
[Result "1/2-1/2"]
[ECO "A58"]
[WhiteElo "2142"]
[BlackElo "1953"]
[Annotator "NA"]
[PlyCount "88"]
[EventDate "2019.11.16"]
[EventType "swiss"]
[EventCountry "ESP"]
[SourceTitle "playchess.com"]
[Source "ChessBase"]
[SourceQuality "1"]
[TimeControl "5400+30"]

1. d4 {[%emt 0:02:48]} Nf6 {[%emt 0:00:00]} 2. c4 {[%emt 0:00:06]} c5 {[%emt 0:00:00]} 3. d5 {[%emt 0:00:05]} b5 {[%emt 0:00:00]} 4. cxb5 {[%emt 0:04:42]} a6 {[%emt 0:00:06]} 5. bxa6 {[%emt 0:00:05]} g6 {[%emt 0:00:21]} 6. Nc3 {[%emt 0:00:45]} Bg7 {[%emt 0:00:12]} 7. Nf3 {[%emt 0:00:17]} O-O {[%emt 0:00:28]} 8. g3 {[%emt 0:00:11]} Nxa6 {[%emt 0:13:32]} 9. Bg2 {[%emt 0:01:31]} d6 {[%emt 0:02:29]} 10. O-O {[%emt 0:00:58]} Nb4 {[%emt 0:04:54]} 11. Nh4 {[%emt 0:04:41]} h6 {[%emt 0:18:36]} 12. a3 {[%emt 0:10:52]} g5 {[%emt 0:40:42]} 13. Nf3 {[%emt 0:01:18]} Bf5 {[%emt 0:00:37]} 14. Ne1 {[%emt 0:01:45]} Qd7 {[%emt 0:01:50]} 15. e4 {[%emt 0:02:44]} Bg6 {[%emt 0:00:47]} 16. Be3 {[%emt 0:02:50]} Na6 {[%emt 0:00:36]} 17. f3 {[%emt 0:05:24]} Rfb8 {[%emt 0:00:21]} 18. Rf2 {[%emt 0:03:55]} Rb7 {[%emt 0:01:32]} 19. Bf1 {[%emt 0:01:12]} Nc7 {[%emt 0:00:37]} 20. Bd3 {[%emt 0:09:09]} Rab8 {[%emt 0:00:26]} 21. Qc1 {[%emt 0:03:17]} Qh3 {[%emt 0:01:28]} 22. Rc2 {[%emt 0:04:30]} Qd7 {[%emt 0:01:03]} 23. Rd2 {[%emt 0:11:20]} Rb3 {[%emt 0:01:41]} 24. Rb1 {[%emt 0:07:44]} R3b7 {[%emt 0:01:36]} 25. Re2 {[%emt 0:05:26]} Rd8 {[%emt 0:01:37]} 26. b4 {[%emt 0:03:09]} cxb4 {[%emt 0:00:36]} 27. axb4 {[%emt 0:00:10]} Rc8 {[%emt 0:00:33]} 28. Rc2 {[%emt 0:00:36]} e6 {[%emt 0:00:28]} 29. dxe6 {[%emt 0:01:49]} Nxe6 {[%emt 0:00:24]} 30. Ba6 {[%emt 0:00:58]} g4 {[%emt 0:00:27]} 31. Bxb7 {[%emt 0:05:37]} Qxb7 {[%emt 0:00:01]} 32. Rb3 {[%emt 0:02:06]} gxf3 {[%emt 0:00:23]} 33. Qd1 {[%emt 0:01:04]} Ng4 {[%emt 0:00:46]} 34. Nd5 {[%emt 0:02:17]} Rxc2 {[%emt 0:00:57]} 35. Nxc2 {[%emt 0:01:02]} Bxe4 {[%emt 0:00:28]} 36. Nf4 {[%emt 0:00:48]} Nxf4 {[%emt 0:01:14]} 37. gxf4 {[%emt 0:00:42]} Qe7 {[%emt 0:00:56]} 38. Ne1 {[%emt 0:00:28]} Qe6 {[%emt 0:02:15]} 39. Ra3 {[%emt 0:00:34]} Nxe3 {[%emt 0:00:45]} 40. Rxe3 {[%emt 0:00:11]} Qg4+ {[%emt 0:00:09]} 41. Kf1 {[%emt 0:00:18]} Qh3+ {[%emt 0:01:15]} 42. Kg1 {[%emt 0:00:57]} Qg4+ {[%emt 0:02:04]} 43. Kf1 {[%emt 0:00:24]} Qh3+ {[%emt 0:00:48]} 44. Kg1 {[%emt 0:00:06]} Qg4+ {[%emt 0:01:20]} 1/2-1/2

[Event "84th ESP-ch 2019"]
[Site "Marbella"]
[Date "2019.11.24"]
[Round "9.39"]
[White "Hernandez Perez, Jesus"]
[Black "Diaz Mino, Pablo"]
[Result "0-1"]
[ECO "C49"]
[WhiteElo "1956"]
[BlackElo "2135"]
[Annotator "NA"]
[PlyCount "94"]
[EventDate "2019.11.16"]
[EventType "swiss"]
[EventCountry "ESP"]
[SourceTitle "playchess.com"]
[Source "ChessBase"]
[SourceQuality "1"]
[TimeControl "5400+30"]

1. e4 {[%emt 0:01:42]} e5 {[%emt 0:00:00]} 2. Nc3 {[%emt 0:00:10]} Nc6 {[%emt 0:00:06]} 3. Nf3 {[%emt 0:00:11]} Nf6 {[%emt 0:00:05]} 4. Bb5 {[%emt 0:00:10]} Bb4 {[%emt 0:00:05]} 5. O-O {[%emt 0:00:41]} O-O {[%emt 0:00:05]} 6. d3 {[%emt 0:00:40]} Bxc3 {[%emt 0:00:04]} 7. bxc3 {[%emt 0:00:16]} Qe7 {[%emt 0:00:40]} 8. Bg5 {[%emt 0:02:53]} h6 {[%emt 0:01:01]} 9. Bh4 {[%emt 0:02:22]} Nd8 {[%emt 0:11:50]} 10. Bc4 {[%emt 0:14:38]} d6 {[%emt 0:04:22]} 11. Re1 {[%emt 0:03:36]} Be6 {[%emt 0:03:18]} 12. Bxe6 {[%emt 0:02:36]} Nxe6 {[%emt 0:00:35]} 13. Bxf6 {[%emt 0:01:18]} Qxf6 {[%emt 0:00:08]} 14. g3 {[%emt 0:01:12]} Rad8 {[%emt 0:13:45]} 15. Qe2 {[%emt 0:05:17]} Rfe8 {[%emt 0:01:08]} 16. Nh4 {[%emt 0:05:55]} g6 {[%emt 0:04:25]} 17. Qe3 {[%emt 0:05:51]} g5 {[%emt 0:07:46]} 18. Nf5 {[%emt 0:02:03]} b6 {[%emt 0:02:27]} 19. a4 {[%emt 0:03:09]} a5 {[%emt 0:00:19]} 20. Kg2 {[%emt 0:01:41]} Ng7 {[%emt 0:09:07]} 21. Nxg7 {[%emt 0:01:55]} Kxg7 {[%emt 0:00:11]} 22. d4 {[%emt 0:05:20]} d5 {[%emt 0:03:57]} 23. exd5 {[%emt 0:08:46]} Rxd5 {[%emt 0:01:44]} 24. Qf3 {[%emt 0:05:42]} Red8 {[%emt 0:00:53]} 25. dxe5 {[%emt 0:01:10]} Rxe5 {[%emt 0:00:13]} 26. Qxf6+ {[%emt 0:02:49]} Kxf6 {[%emt 0:00:04]} 27. Rxe5 {[%emt 0:00:15]} Kxe5 {[%emt 0:00:02]} 28. Kf3 {[%emt 0:02:21]} f5 {[%emt 0:00:31]} 29. Ke2 {[%emt 0:05:06]} g4 {[%emt 0:00:54]} 30. Ke3 {[%emt 0:00:36]} f4+ {[%emt 0:06:40]} 31. gxf4+ {[%emt 0:02:41]} Kf5 {[%emt 0:00:01]} 32. f3 {[%emt 0:00:49]} gxf3 {[%emt 0:00:18]} 33. Rf1 {[%emt 0:03:02]} Re8+ {[%emt 0:00:10]} 34. Kxf3 {[%emt 0:02:57]} Re4 {[%emt 0:00:05]} 35. Kg3 {[%emt 0:02:16]} Rxa4 {[%emt 0:00:28]} 36. Rd1 {[%emt 0:00:21]} Rxf4 {[%emt 0:01:29]} 37. Rd5+ {[%emt 0:03:20]} Ke6 {[%emt 0:00:01]} 38. Rh5 {[%emt 0:00:21]} Rf6 {[%emt 0:00:17]} 39. Rh4 {[%emt 0:00:11]} Kd6 {[%emt 0:00:31]} 40. Rc4 {[%emt 0:00:52]} b5 {[%emt 0:00:21]} 41. Rd4+ {[%emt 0:00:23]} Kc5 {[%emt 0:00:30]} 42. h4 {[%emt 0:00:05]} a4 {[%emt 0:00:17]} 43. h5 {[%emt 0:00:19]} a3 {[%emt 0:00:19]} 44. Rd1 {[%emt 0:00:43]} Kc4 {[%emt 0:00:13]} 45. Ra1 {[%emt 0:00:02]} Ra6 {[%emt 0:00:15]} 46. Kf4 {[%emt 0:01:14]} Kxc3 {[%emt 0:00:07]} 47. Ra2 {[%emt 0:00:04]} b4 {[%emt 0:00:11]} 0-1

[Event "84th ESP-ch 2019"]
[Site "Marbella"]
[Date "2019.11.24"]
[Round "9.40"]
[White "Sanchez Elena, Lucia"]
[Black "Guillo Longares, Cecilia"]
[Result "0-1"]
[ECO "B34"]
[WhiteElo "1662"]
[BlackElo "2100"]
[Annotator "NA"]
[PlyCount "54"]
[EventDate "2019.11.16"]
[EventType "swiss"]
[EventCountry "ESP"]
[SourceTitle "playchess.com"]
[Source "ChessBase"]
[SourceQuality "1"]
[TimeControl "5400+30"]

1. e4 {[%emt 0:00:00]} c5 {[%emt 0:00:00]} 2. Nf3 {[%emt 0:00:00]} Nc6 {[%emt 0:00:00]} 3. d4 {[%emt 0:00:00]} cxd4 {[%emt 0:00:00]} 4. Nxd4 {[%emt 0:00:00]} g6 {[%emt 0:00:00]} 5. Nc3 {[%emt 0:00:10]} Bg7 {[%emt 0:00:00]} 6. Be3 {[%emt 0:00:05]} Nf6 {[%emt 0:00:00]} 7. f3 {[%emt 0:00:38]} O-O {[%emt 0:00:00]} 8. Qd2 {[%emt 0:00:12]} d5 {[%emt 0:00:05]} 9. Nxc6 {[%emt 0:05:30]} bxc6 {[%emt 0:00:06]} 10. O-O-O {[%emt 0:00:25]} Be6 {[%emt 0:00:52]} 11. Bc5 {[%emt 0:12:38]} Qc7 {[%emt 0:12:36]} 12. Be2 {[%emt 0:05:05]} Rfd8 {[%emt 0:02:20]} 13. Qe3 {[%emt 0:00:37]} dxe4 {[%emt 0:04:35]} 14. fxe4 {[%emt 0:00:30]} Ng4 {[%emt 0:01:55]} 15. Bxg4 {[%emt 0:06:59]} Bxg4 {[%emt 0:00:41]} 16. Rxd8+ {[%emt 0:00:11]} Rxd8 {[%emt 0:14:25]} 17. Qg5 {[%emt 0:05:29]} Qd7 {[%emt 0:01:33]} 18. h3 {[%emt 0:10:04]} h6 {[%emt 0:13:33]} 19. Qxg4 {[%emt 0:17:06]} Qd2+ {[%emt 0:00:14]} 20. Kb1 {[%emt 0:00:07]} Bxc3 {[%emt 0:00:09]} 21. bxc3 {[%emt 0:00:19]} Qxc3 {[%emt 0:00:58]} 22. Bxa7 {[%emt 0:00:07]} Rd2 {[%emt 0:00:15]} 23. Rc1 {[%emt 0:01:59]} Qb4+ {[%emt 0:00:14]} 24. Ka1 {[%emt 0:00:07]} Qa3 {[%emt 0:00:27]} 25. Qc8+ {[%emt 0:04:39]} Kg7 {[%emt 0:02:46]} 26. Rf1 {[%emt 0:01:15]} Qc3+ {[%emt 0:00:11]} 27. Kb1 {[%emt 0:00:13]} Qxc2+ {[%emt 0:00:04]} 0-1

[Event "84th ESP-ch 2019"]
[Site "Marbella"]
[Date "2019.11.24"]
[Round "9.41"]
[White "Aguado Doncel, Pablo Luis"]
[Black "Abreu Suarez, Isauro"]
[Result "1-0"]
[ECO "D08"]
[WhiteElo "2062"]
[BlackElo "1974"]
[Annotator "NA"]
[PlyCount "113"]
[EventDate "2019.11.16"]
[EventType "swiss"]
[EventCountry "ESP"]
[SourceTitle "playchess.com"]
[Source "ChessBase"]
[SourceQuality "1"]
[TimeControl "5400+30"]

1. d4 {[%emt 0:00:00]} d5 {[%emt 0:00:35]} 2. c4 {[%emt 0:00:00]} e5 {[%emt 0:00:25]} 3. dxe5 {[%emt 0:00:33]} d4 {[%emt 0:00:13]} 4. Nf3 {[%emt 0:00:37]} Nc6 {[%emt 0:00:11]} 5. a3 {[%emt 0:00:31]} Bg4 {[%emt 0:03:28]} 6. e3 {[%emt 0:07:10]} dxe3 {[%emt 0:02:59]} 7. Qxd8+ {[%emt 0:00:37]} Rxd8 {[%emt 0:00:07]} 8. Bxe3 {[%emt 0:00:16]} Nxe5 {[%emt 0:00:44]} 9. Be2 {[%emt 0:03:28]} Nxf3+ {[%emt 0:14:02]} 10. Bxf3 {[%emt 0:00:59]} Bxf3 {[%emt 0:00:17]} 11. gxf3 {[%emt 0:00:02]} Nf6 {[%emt 0:07:40]} 12. Rg1 {[%emt 0:01:09]} h6 {[%emt 0:01:46]} 13. Nc3 {[%emt 0:00:34]} a6 {[%emt 0:00:34]} 14. Ke2 {[%emt 0:01:18]} Nh5 {[%emt 0:09:18]} 15. c5 {[%emt 0:13:30]} f5 {[%emt 0:11:17]} 16. f4 {[%emt 0:03:34]} Be7 {[%emt 0:02:39]} 17. Rad1 {[%emt 0:00:56]} c6 {[%emt 0:00:54]} 18. Na4 {[%emt 0:05:34]} O-O {[%emt 0:04:00]} 19. Nb6 {[%emt 0:00:22]} Rxd1 {[%emt 0:01:48]} 20. Rxd1 {[%emt 0:00:20]} Rd8 {[%emt 0:00:24]} 21. Nc4 {[%emt 0:07:54]} Rxd1 {[%emt 0:04:33]} 22. Kxd1 {[%emt 0:00:01]} Bd8 {[%emt 0:00:18]} 23. Nd6 {[%emt 0:05:42]} Bc7 {[%emt 0:00:33]} 24. Nxb7 {[%emt 0:00:51]} Kf7 {[%emt 0:07:51]} 25. Ke2 {[%emt 0:01:35]} Ke6 {[%emt 0:00:30]} 26. Kf3 {[%emt 0:02:18]} Kd5 {[%emt 0:09:52]} 27. b4 {[%emt 0:01:43]} Nf6 {[%emt 0:03:05]} 28. Bc1 {[%emt 0:01:19]} Ne4 {[%emt 0:01:36]} 29. h4 {[%emt 0:05:20]} g6 {[%emt 0:00:13]} 30. Ke3 {[%emt 0:00:31]} Nf6 {[%emt 0:03:06]} 31. Ke2 {[%emt 0:08:08]} Nh5 {[%emt 0:00:44]} 32. Kf3 {[%emt 0:00:23]} Nf6 {[%emt 0:01:50]} 33. Bb2 {[%emt 0:01:07]} Nh5 {[%emt 0:00:10]} 34. Be5 {[%emt 0:01:15]} Bxe5 {[%emt 0:00:16]} 35. fxe5 {[%emt 0:00:01]} g5 {[%emt 0:02:07]} 36. hxg5 {[%emt 0:01:07]} hxg5 {[%emt 0:00:05]} 37. Nd8 {[%emt 0:00:33]} Ng7 {[%emt 0:03:44]} 38. Nf7 {[%emt 0:01:32]} Ne6 {[%emt 0:00:08]} 39. Ke3 {[%emt 0:00:30]} g4 {[%emt 0:00:37]} 40. f4 {[%emt 0:06:34]} gxf3 {[%emt 0:02:06]} 41. Kxf3 {[%emt 0:00:18]} Kd4 {[%emt 0:02:37]} 42. Kf2 {[%emt 0:05:03]} Ke4 {[%emt 0:00:52]} 43. Ke2 {[%emt 0:01:04]} Nd4+ {[%emt 0:00:34]} 44. Kf2 {[%emt 0:01:35]} f4 {[%emt 0:00:37]} 45. Ng5+ {[%emt 0:04:57]} Kxe5 {[%emt 0:00:13]} 46. Nf3+ {[%emt 0:00:25]} Kd5 {[%emt 0:00:49]} 47. Nxd4 {[%emt 0:00:39]} Kxd4 {[%emt 0:00:04]} 48. Kf3 {[%emt 0:00:40]} Kc4 {[%emt 0:00:12]} 49. Kxf4 {[%emt 0:00:17]} Kb3 {[%emt 0:00:10]} 50. Ke5 {[%emt 0:00:43]} Kxa3 {[%emt 0:00:14]} 51. Kd6 {[%emt 0:01:03]} Kxb4 {[%emt 0:00:09]} 52. Kxc6 {[%emt 0:00:14]} a5 {[%emt 0:00:10]} 53. Kd5 {[%emt 0:00:39]} a4 {[%emt 0:02:05]} 54. c6 {[%emt 0:00:05]} a3 {[%emt 0:00:41]} 55. c7 {[%emt 0:00:04]} Kb3 {[%emt 0:00:45]} 56. c8=Q {[%emt 0:00:23]} a2 {[%emt 0:00:15]} 57. Qc1 {[%emt 0:00:08]} 1-0

[Event "84th ESP-ch 2019"]
[Site "Marbella"]
[Date "2019.11.24"]
[Round "9.42"]
[White "Martin Carmona, Gaston Manuel"]
[Black "Moreno Latorre, Fco Jose"]
[Result "0-1"]
[ECO "E91"]
[WhiteElo "2304"]
[BlackElo "1875"]
[Annotator "NA"]
[PlyCount "46"]
[EventDate "2019.11.16"]
[EventType "swiss"]
[EventCountry "ESP"]
[SourceTitle "playchess.com"]
[Source "ChessBase"]
[SourceQuality "1"]
[TimeControl "5400+30"]

1. d4 {[%emt 0:05:14]} Nf6 {[%emt 0:00:00]} 2. c4 {[%emt 0:01:36]} g6 {[%emt 0:00:00]} 3. Nc3 {[%emt 0:03:18]} Bg7 {[%emt 0:00:24]} 4. e4 {[%emt 0:00:42]} d6 {[%emt 0:00:09]} 5. Nf3 {[%emt 0:00:05]} O-O {[%emt 0:00:05]} 6. Be2 {[%emt 0:00:06]} Nbd7 {[%emt 0:00:19]} 7. O-O {[%emt 0:00:45]} e5 {[%emt 0:00:15]} 8. Be3 {[%emt 0:06:52]} Ng4 {[%emt 0:16:13]} 9. Bg5 {[%emt 0:00:37]} f6 {[%emt 0:00:22]} 10. Bh4 {[%emt 0:03:03]} Nh6 {[%emt 0:04:40]} 11. dxe5 {[%emt 0:04:53]} dxe5 {[%emt 0:03:13]} 12. Qb3 {[%emt 0:00:30]} Nf7 {[%emt 0:02:28]} 13. c5 {[%emt 0:00:47]} c6 {[%emt 0:03:26]} 14. Qc4 {[%emt 0:02:39]} Qe7 {[%emt 0:20:07]} 15. b4 {[%emt 0:01:54]} Rd8 {[%emt 0:00:57]} 16. Rfd1 {[%emt 0:04:48]} a5 {[%emt 0:01:05]} 17. b5 {[%emt 0:00:30]} Bf8 {[%emt 0:07:24]} 18. Rd6 {[%emt 0:14:14]} g5 {[%emt 0:19:38]} 19. Bxg5 fxg5 {[%emt 0:02:17]} 20. Re6 {[%emt 0:11:47]} Qxc5 {[%emt 0:00:59]} 21. Nxg5 {[%emt 0:00:30]} Qxc4 {[%emt 0:00:30]} 22. Bxc4 {[%emt 0:00:07]} Nb6 {[%emt 0:08:54]} 23. Nxf7 {[%emt 0:11:50]} Kxf7 {[%emt 0:00:02]} 0-1